bitfinex/quotes_ETHUSD_20251026
["timestamp","ask_amount","ask_price","bid_price","bid_amount"]
[1761449213009,6.12719999,3933.0,3932.9,3.6442]
[1761449215911,8.66978834,3933.0,3932.9,3.6442]
[1761449216811,6.12719999,3933.0,3932.9,3.6442]
[1761449217441,6.12719999,3933.0,3932.9,0.4412]
[1761449217846,6.12719999,3933.0,3932.9,3.6442]
[1761449218906,8.66978834,3933.0,3932.9,3.6442]
[1761449220236,8.66978834,3933.0,3932.9,0.4412]
[1761449220434,8.66978834,3933.0,3932.9,3.6442]
[1761449222451,8.66978834,3933.0,3932.9,0.4412]
[1761449222639,8.66978834,3933.0,3932.9,3.6442]
[1761449224123,6.12719999,3933.0,3932.9,3.6442]
[1761449225617,5.99999999,3933.0,3932.9,4.00862]
[1761449227728,5.99999999,3933.0,3932.9,4.00762]
[1761449229950,5.99999999,3933.0,3932.9,6.550273]
[1761449230726,5.99999999,3933.0,3932.9,3.348273]
[1761449231124,5.99999999,3933.0,3932.9,4.00762]
[1761449231718,5.99999999,3933.0,3932.9,0.80562]
[1761449231920,5.99999999,3933.0,3932.9,4.00762]
[1761449232119,5.99999999,3933.0,3932.9,6.550273]
[1761449233480,5.99999999,3933.0,3932.9,3.348273]
[1761449233662,5.99999999,3933.0,3932.9,6.550273]
[1761449235780,5.99999999,3933.0,3932.9,3.348273]
[1761449236075,5.99999999,3933.0,3932.9,6.550273]
[1761449241383,5.99999999,3933.0,3932.9,6.677473]
[1761449241759,5.99999999,3933.0,3932.9,7.44040566]
[1761449242173,5.99999999,3933.0,3932.9,8.99560566]
[1761449243451,5.99999999,3933.0,3932.9,5.79360566]
[1761449243692,5.99999999,3933.0,3932.9,8.99560566]
[1761449244557,5.99999999,3933.0,3932.9,8.99460566]
[1761449248387,5.99999999,3933.0,3932.9,5.79360566]
[1761449248592,5.99999999,3933.0,3932.9,8.99460566]
[1761449256398,5.99999999,3933.0,3932.9,5.79360566]
[1761449256795,5.99999999,3933.0,3932.9,8.99460566]
[1761449261243,5.99999999,3933.0,3932.9,5.79360566]
[1761449261440,5.99999999,3933.0,3932.9,8.99460566]
[1761449268173,5.99999999,3933.0,3932.9,8.55440566]
[1761449268335,5.99999999,3933.0,3932.9,9.01990566]
[1761449268736,5.99999999,3933.0,3932.9,5.35440566]
[1761449268960,5.99999999,3933.0,3932.9,8.55440566]
[1761449269158,5.99999999,3933.0,3932.9,9.01990566]
[1761449271585,5.99999999,3933.0,3932.9,5.35440566]
[1761449271785,5.99999999,3933.0,3932.9,8.55440566]
[1761449271966,5.99999999,3933.0,3932.9,9.01990566]
[1761449273493,5.99999999,3933.0,3932.9,8.89270566]
[1761449274180,0.001,3933.3,3933.2,2.54245906]
[1761449274381,0.001,3933.3,3933.2,12.34116443]
[1761449274577,0.001,3933.3,3933.2,12.78123984]
[1761449274782,0.001,3933.3,3933.2,12.88294686]
[1761449278721,0.001,3933.3,3933.2,9.26263666]
[1761449280920,0.001,3933.3,3933.2,6.06263666]
[1761449281084,0.001,3933.3,3933.2,9.26263666]
[1761449281423,0.001,3933.3,3933.2,6.06263666]
[1761449281924,0.001,3933.3,3933.2,9.26263666]
[1761449283406,0.001,3933.3,3933.2,9.38983666]
[1761449286534,0.001,3933.3,3933.2,6.18983666]
[1761449286838,0.001,3933.3,3933.2,9.28812964]
[1761449288336,0.001,3933.3,3933.2,9.28712964]
[1761449316412,0.001,3933.3,3933.2,8.82162964]
[1761449316722,0.001,3933.3,3933.2,9.25832964]
[1761449317702,0.001,3933.3,3933.2,6.05932964]
[1761449317906,0.001,3933.3,3933.2,9.25732964]
[1761449321718,0.001,3933.3,3933.2,8.82062964]
[1761449322491,0.001,3933.3,3933.2,5.62262964]
[1761449322700,0.001,3933.3,3933.2,8.82062964]
[1761449326410,0.001,3933.3,3933.2,9.25752964]
[1761449329346,0.001,3933.3,3933.2,8.82062964]
[1761449335140,0.001,3933.3,3933.2,9.25752964]
[1761449335939,0.001,3933.3,3933.2,8.82062964]
[1761449336145,0.001,3933.3,3933.2,9.25752964]
[1761449340967,0.001,3933.3,3933.2,12.87387236]
[1761449342270,0.001,3933.3,3933.2,12.43697236]
[1761449342571,0.001,3933.3,3933.2,12.88697236]
[1761449347885,0.001,3933.3,3933.2,13.39385236]
[1761449348254,0.001,3933.3,3933.2,13.49554464]
[1761449356519,0.001,3933.3,3933.2,13.36834464]
[1761449358966,1e-08,3933.7,3933.6,2.54220052]
[1761449359166,1e-08,3933.7,3933.6,10.04393353]
[1761449359370,1e-08,3933.7,3933.6,11.57371153]
[1761449360590,0.001,3934.2,3934.1,4.09707743]
[1761449360910,0.001,3934.2,3934.1,10.93483892]
[1761449361110,0.001,3934.2,3934.1,12.51130064]
[1761449361999,0.001,3934.2,3934.1,13.11540064]
[1761449362309,0.001,3934.2,3934.1,12.66840064]
[1761449364103,0.001,3934.2,3934.1,13.11540064]
[1761449364910,0.001,3934.2,3934.1,15.02040064]
[1761449366437,0.001,3934.2,3934.1,15.37940064]
[1761449373827,0.001,3934.2,3934.1,4.30085792]
[1761449374029,0.002,3934.2,3934.1,5.73687743]
[1761449379048,0.002,3934.2,3933.6,4.09935661]
[1761449379049,0.002,3934.2,3933.6,0.002]
[1761449379239,0.0664,3933.7,3933.6,4.09940052]
[1761449379417,0.0664,3933.7,3933.6,7.29440052]
[1761449379747,0.0664,3933.7,3933.6,8.46856836]
[1761449380141,0.0674,3933.7,3933.6,8.46856836]
[1761449380634,0.0664,3933.7,3933.6,7.29440052]
[1761449380835,0.0674,3933.7,3933.6,7.29440052]
[1761449381038,0.0664,3933.7,3933.6,0.002]
[1761449381238,6.22587862,3933.7,3933.6,0.002]
[1761449381441,0.16913573,3933.7,3933.6,0.002]
[1761449382034,0.69445405,3933.7,3933.6,0.002]
[1761449382246,3.23658995,3933.7,3933.6,3.2]
[1761449383843,3.36378995,3933.7,3933.6,3.2]
[1761449385328,0.82165405,3933.7,3933.6,3.2]
[1761449385536,0.29633573,3933.7,3933.6,3.2]
[1761449386139,2.83847163,3933.7,3933.6,3.2]
[1761449388560,0.29633573,3933.7,3933.6,3.2]
[1761449388756,2.83847163,3933.7,3933.6,3.2]
[1761449389557,0.29633573,3933.7,3933.6,3.2]
[1761449390773,3.37650784,3933.7,3933.6,3.2]
[1761449392660,3.37650784,3933.7,3933.6,0.002]
[1761449392868,3.37650784,3933.7,3933.6,3.199]
[1761449395834,3.40828453,3933.7,3933.6,3.199]
[1761449397570,0.86614863,3933.7,3933.6,3.199]
[1761449397963,3.40828453,3933.7,3933.6,3.199]
[1761449398264,3.3065488,3933.7,3933.6,3.199]
[1761449398893,0.60543621,3933.7,3933.6,3.199]
[1761449399076,2.6095359,3933.7,3933.6,3.199]
[1761449400874,2.64131259,3933.7,3933.6,3.199]
[1761449402268,2.64131259,3933.7,3933.6,0.002]
[1761449402579,2.64131259,3933.7,3933.6,3.199]
[1761449403085,2.7112706,3933.7,3933.6,3.199]
[1761449403290,3.23977686,3933.7,3933.6,3.199]
[1761449403850,3.23977686,3933.7,3933.6,0.002]
[1761449404084,3.23977686,3933.7,3933.6,3.199]
[1761449404274,3.23977686,3933.7,3933.6,0.002]
[1761449404446,3.23977686,3933.7,3933.6,3.199]
[1761449405577,3.23977686,3933.7,3933.6,0.002]
[1761449405791,3.23977686,3933.7,3933.6,3.199]
[1761449406274,3.23977686,3933.7,3933.6,0.002]
[1761449406473,3.23977686,3933.7,3933.6,3.199]
[1761449406772,3.13804216,3933.7,3933.6,3.199]
[1761449407810,3.13804216,3933.7,3933.6,0.002]
[1761449407982,3.13804216,3933.7,3933.6,3.199]
[1761449408889,3.26524216,3933.7,3933.6,3.199]
[1761449410726,3.81356104,3933.7,3933.6,3.199]
[1761449411508,3.81356104,3933.7,3933.6,0.002]
[1761449411707,3.81356104,3933.7,3933.6,3.199]
[1761449412694,3.81409644,3933.7,3933.6,3.199]
[1761449413112,3.26524216,3933.7,3933.6,3.199]
[1761449413626,3.26524216,3933.7,3933.6,0.002]
[1761449413830,3.26524216,3933.7,3933.6,3.199]
[1761449415035,3.81409192,3933.7,3933.6,3.199]
[1761449415241,3.26524216,3933.7,3933.6,3.199]
[1761449415798,3.81409422,3933.7,3933.6,0.002]
[1761449415993,4.32097422,3933.7,3933.6,0.002]
[1761449417130,3.81409422,3933.7,3933.6,0.002]
[1761449417335,3.94387091,3933.7,3933.6,0.002]
[1761449419030,4.45075091,3933.7,3933.6,0.002]
[1761449421353,8.87163483,3933.7,3933.6,0.002]
[1761449421550,8.83985814,3933.7,3933.6,0.002]
[1761449429672,10.39505814,3933.7,3933.6,0.002]
[1761449429873,11.30981157,3933.7,3933.6,0.002]
[1761449430171,10.49681587,3933.7,3933.6,0.002]
[1761449434534,6.66203905,3933.7,3933.6,0.002]
[1761449434845,5.47005195,3933.7,3933.6,0.002]
[1761449435048,5.97693195,3933.7,3933.6,0.002]
[1761449436231,6.07593195,3933.7,3933.6,0.002]
[1761449446375,5.97693195,3933.7,3933.6,0.002]
[1761449446875,3.74669422,3933.7,3933.6,0.002]
[1761449447042,3.21818796,3933.7,3933.6,0.447]
[1761449447544,3.21818796,3933.7,3933.6,0.002]
[1761449448746,3.24996465,3933.7,3933.6,0.002]
[1761449452855,3.75684465,3933.7,3933.6,0.002]
[1761449453061,3.85584465,3933.7,3933.6,0.002]
[1761449453370,5.01286977,3933.7,3933.6,0.002]
[1761449458412,4.91386977,3933.7,3933.6,0.002]
[1761449458910,5.36086977,3933.7,3933.6,0.002]
[1761449459113,5.32909308,3933.7,3933.6,0.002]
[1761449464085,5.42809308,3933.7,3933.6,0.002]
[1761449464416,5.32909308,3933.7,3933.6,0.002]
[1761449464618,6.01420018,3933.7,3933.6,0.002]
[1761449464819,9.63434418,3933.7,3933.6,0.002]
[1761449464987,9.73334418,3933.7,3933.6,0.002]
[1761449465182,9.63434418,3933.7,3933.6,0.002]
[1761449465418,11.51819051,3933.7,3933.6,0.002]
[1761449465623,10.60343708,3933.7,3933.6,0.002]
[1761449466409,11.51806977,3933.7,3933.6,0.002]
[1761449470931,11.01806977,3933.7,3933.6,0.002]
[1761449471133,10.91906977,3933.7,3933.6,0.002]
[1761449471319,10.00443708,3933.7,3933.6,0.002]
[1761449477044,10.10343708,3933.7,3933.6,0.002]
[1761449477242,10.00443708,3933.7,3933.6,0.002]
[1761449477554,10.10343708,3933.7,3933.6,0.002]
[1761449477856,11.01806977,3933.7,3933.6,0.002]
[1761449479320,10.10343708,3933.7,3933.6,0.002]
[1761449479506,11.01806977,3933.7,3933.6,0.002]
[1761449480638,10.10343708,3933.7,3933.6,0.002]
[1761449483321,10.00443708,3933.7,3933.6,0.002]
[1761449489757,10.10343708,3933.7,3933.6,0.002]
[1761449493520,11.47556723,3933.7,3933.6,0.002]
[1761449495679,11.47656723,3933.7,3933.6,0.002]
[1761449496309,11.37756723,3933.7,3933.6,0.002]
[1761449496894,11.37756723,3933.7,3933.6,0.4542]
[1761449497275,11.37756723,3933.7,3933.6,0.002]
[1761449497883,10.00543708,3933.7,3933.6,0.002]
[1761449498591,8.84841196,3933.7,3933.6,0.002]
[1761449498924,8.84841196,3933.7,3933.6,0.4363]
[1761449499126,12.04541196,3933.7,3933.6,0.4363]
[1761449499890,12.95973743,3933.7,3933.6,0.4363]
[1761449502079,12.04541196,3933.7,3933.6,0.002]
[1761449502275,13.73280027,3933.7,3933.6,0.002]
[1761449509316,13.18394821,3933.7,3933.6,0.002]
[1761449510831,13.73270895,3933.7,3933.6,0.002]
[1761449514611,13.83170895,3933.7,3933.6,0.002]
[1761449515013,13.73270895,3933.7,3933.6,0.002]
[1761449520040,14.64729546,3933.7,3933.6,0.4363]
[1761449520649,6.14276315,3933.7,3933.6,0.4513]
[1761449520952,9.33976315,3933.7,3933.6,0.4513]
[1761449521249,6.14276315,3933.7,3933.6,0.4513]
[1761449523508,5.22817664,3933.7,3933.6,0.4513]
[1761449523837,5.22817664,3933.7,3933.6,0.002]
[1761449524055,6.14276315,3933.7,3933.6,0.002]
[1761449524334,6.14273254,3933.7,3933.6,0.002]
[1761449524516,6.14273254,3933.7,3933.6,0.4513]
[1761449525435,6.14273254,3933.7,3933.6,0.002]
[1761449525436,6.9956883,3933.7,3933.6,0.002]
[1761449526237,7.0946883,3933.7,3933.6,0.002]
[1761449526926,7.0946883,3933.7,3933.2,0.002]
[1761449526927,3.04927442,3933.3,3933.2,0.002]
[1761449527154,13.84557406,3933.3,3933.2,0.002]
[1761449527355,15.55425187,3933.3,3933.2,0.002]
[1761449527551,12.35725187,3933.3,3933.2,0.002]
[1761449527754,15.6560197,3933.3,3933.2,0.002]
[1761449532463,15.65578072,3933.3,3933.2,0.002]
[1761449533174,14.74116395,3933.3,3933.2,0.002]
[1761449533580,14.74116395,3933.3,3933.2,0.4601]
[1761449539268,14.74116395,3933.3,3933.2,0.002]
[1761449541125,14.84016395,3933.3,3933.2,0.002]
[1761449541287,14.74116395,3933.3,3933.2,0.002]
[1761449541488,15.65578072,3933.3,3933.2,0.002]
[1761449542415,15.75478072,3933.3,3933.2,0.002]
[1761449544605,14.74116395,3933.3,3933.2,0.002]
[1761449555119,15.65578072,3933.3,3933.2,0.4601]
[1761449555746,15.65578072,3933.3,3933.2,0.002]
[1761449557404,9.49355017,3933.3,3933.2,0.002]
[1761449557610,8.5789334,3933.3,3933.2,0.4601]
[1761449557824,5.3819334,3933.3,3933.2,0.4601]
[1761449558613,5.28016557,3933.3,3933.2,0.4601]
[1761449561660,5.28016557,3933.3,3933.2,0.4448]
[1761449567122,5.28016557,3933.3,3933.2,0.002]
[1761449567313,6.51958488,3933.3,3933.2,0.002]
[1761449567749,6.75478488,3933.3,3933.2,0.002]
[1761449569145,11.17655769,3933.3,3933.2,0.002]
[1761449569445,11.17655769,3933.3,3933.2,0.4448]
[1761449569446,6.75478488,3933.3,3933.2,0.4448]
[1761449570447,5.51536557,3933.3,3933.2,0.4448]
[1761449575427,5.51536557,3933.3,3933.2,0.002]
[1761449576156,6.42998234,3933.3,3933.2,0.002]
[1761449577861,5.51536557,3933.3,3933.2,0.002]
[1761449578289,6.42998234,3933.3,3933.2,0.002]
[1761449578929,5.51536557,3933.3,3933.2,0.002]
[1761449581168,7.89300417,3933.3,3933.2,0.002]
[1761449581472,12.21577698,3933.3,3933.2,0.002]
[1761449586674,11.41510192,3933.3,3933.2,0.002]
[1761449588790,10.59948515,3933.3,3933.2,0.002]
[1761449589193,11.51437267,3933.3,3933.2,0.002]
[1761449590181,10.59948515,3933.3,3933.2,0.002]
[1761449590684,10.50048515,3933.3,3933.2,0.002]
[1761449591107,11.41530874,3933.3,3933.2,0.002]
[1761449595318,11.41530874,3933.3,3933.2,0.2228]
[1761449595685,5.51536557,3933.3,3933.2,0.6624]
[1761449609621,6.2013768,3933.3,3933.2,0.6624]
[1761449609821,3.96016557,3933.3,3933.2,0.6624]
[1761449617925,3.45328557,3933.3,3933.2,0.6624]
[1761449618540,0.67569115,3933.3,3933.2,0.6624]
[1761449618844,0.6624,3933.5,3933.2,0.6624]
[1761449619048,0.54934102,3933.6,3933.3,0.4683]
[1761449619952,0.54934102,3933.6,3933.4,0.13555]
[1761449620155,0.001,3933.6,3933.4,0.13555]
[1761449620446,0.001,3933.6,3933.5,0.4683]
[1761449622248,2.54320052,3933.6,3933.5,0.4683]
[1761449624321,2.54227845,3933.5,3933.3,1.01664102]
[1761449624559,2.5432082,3933.6,3933.4,0.4683]
[1761449625461,2.54226515,3933.5,3933.4,0.4683]
[1761449628778,2.66946515,3933.5,3933.4,0.4683]
[1761449630250,0.1272,3933.5,3933.4,0.4683]
[1761449634675,0.1272,3933.5,3933.4,3.6623]
[1761449636292,0.1272,3933.5,3933.4,3.6643]
[1761449636490,2.66946515,3933.5,3933.4,3.196]
[1761449636858,2.66946515,3933.5,3933.4,3.6643]
[1761449637988,2.66946515,3933.5,3933.4,3.196]
[1761449639101,2.66946515,3933.5,3933.4,0.002]
[1761449642189,7.33852123,3933.5,3933.4,0.002]
[1761449642369,4.26544373,3933.5,3933.4,0.002]
[1761449642568,3.74920179,3933.5,3933.4,0.002]
[1761449642786,4.2972741,3933.5,3933.4,0.002]
[1761449644502,3.75619577,3933.5,3933.4,0.002]
[1761449645504,3.72441746,3933.5,3933.4,0.002]
[1761449647306,4.48753448,3933.5,3933.4,0.002]
[1761449649221,4.58653448,3933.5,3933.4,0.002]
[1761449649426,4.48753448,3933.5,3933.4,0.002]
[1761449649629,5.37791996,3933.5,3933.4,0.002]
[1761449653900,5.27891996,3933.5,3933.4,0.002]
[1761449654102,5.37791996,3933.5,3933.4,0.002]
[1761449654304,5.27891996,3933.5,3933.4,0.002]
[1761449655220,4.48753448,3933.5,3933.4,0.002]
[1761449655401,4.51931279,3933.5,3933.4,0.002]
[1761449655598,1.47016764,3933.5,3933.4,0.002]
[1761449655929,3.21753746,3933.5,3933.4,0.4739]
[1761449656115,3.43253746,3933.5,3933.4,0.4739]
[1761449659449,0.89027231,3933.5,3933.4,0.4739]
[1761449660045,3.43253746,3933.5,3933.4,0.4739]
[1761449661258,3.46431577,3933.5,3933.4,0.002]
[1761449662154,3.43253746,3933.5,3933.4,0.002]
[1761449664222,3.43304396,3933.5,3933.4,0.002]
[1761449664942,4.03892396,3933.5,3933.4,0.002]
[1761449665338,3.93992396,3933.5,3933.4,0.002]
[1761449665545,4.6600805,3933.5,3933.4,0.002]
[1761449665862,4.7590805,3933.5,3933.4,0.002]
[1761449667547,4.6600805,3933.5,3933.4,0.002]
[1761449676283,3.93992396,3933.5,3933.4,0.002]
[1761449679947,3.43304396,3933.5,3933.4,0.4455]
[1761449680248,0.89077881,3933.5,3933.4,0.4455]
[1761449680659,0.67577881,3933.5,3933.4,0.4455]
[1761449681180,0.67597876,3933.5,3933.4,0.4455]
[1761449683275,0.67596019,3933.5,3933.4,0.4455]
[1761449684954,3.21822534,3933.5,3933.4,0.4455]
[1761449686154,3.21822534,3933.5,3933.4,0.002]
[1761449687059,4.46596376,3933.5,3933.4,0.002]
[1761449687282,4.56496376,3933.5,3933.4,0.002]
[1761449687487,4.66671632,3933.5,3933.4,0.002]
[1761449688495,4.69849463,3933.5,3933.4,0.002]
[1761449691183,6.25369463,3933.5,3933.4,0.002]
[1761449691382,6.22191632,3933.5,3933.4,0.002]
[1761449691765,6.90783311,3933.5,3933.4,0.002]
[1761449692467,6.12291632,3933.5,3933.4,0.002]
[1761449701333,6.22191632,3933.5,3933.4,0.002]
[1761449701891,6.12291632,3933.5,3933.4,0.002]
[1761449703593,6.22191632,3933.5,3933.4,0.002]
[1761449704105,6.12291632,3933.5,3933.4,0.002]
[1761449710235,6.22191632,3933.5,3933.4,0.002]
[1761449710421,6.90783311,3933.5,3933.4,0.002]
[1761449710834,6.22191632,3933.5,3933.4,0.002]
[1761449711003,6.90783311,3933.5,3933.4,0.002]
[1761449711835,7.13673991,3933.5,3933.4,0.002]
[1761449714827,6.22191632,3933.5,3933.4,0.002]
[1761449723877,7.59384148,3933.5,3933.4,0.002]
[1761449724076,6.22191632,3933.5,3933.4,0.002]
[1761449726433,7.59205505,3933.5,3933.4,0.002]
[1761449737594,6.22191632,3933.5,3933.4,0.002]
[1761449741301,2.54239442,3933.3,3933.2,0.002]
[1761449741499,14.6922746,3933.3,3933.2,0.002]
[1761449741672,14.66049467,3933.3,3933.2,0.002]
[1761449742069,14.76227156,3933.3,3933.2,0.002]
[1761449749408,13.39092039,3933.3,3933.2,0.002]
[1761449753815,13.39092039,3933.3,3933.2,0.2199]
[1761449754009,13.39092039,3933.3,3933.2,0.651]
[1761449755491,13.39092039,3933.3,3933.2,0.4331]
[1761449759324,13.39092039,3933.3,3933.2,0.002]
[1761449769398,13.39092039,3933.3,3933.2,0.4631]
[1761449770832,9.77104257,3933.3,3933.2,0.4631]
[1761449772034,9.77104257,3933.3,3933.2,0.002]
[1761449778376,8.5752115,3933.3,3933.2,0.6813]
[1761449778545,9.94795494,3933.3,3933.2,0.6813]
[1761449782367,8.5752115,3933.3,3933.2,0.6813]
[1761449783872,9.94795494,3933.3,3933.2,0.6813]
[1761449784966,9.94795494,3933.3,3933.2,0.002]
[1761449785155,11.71356183,3933.3,3933.2,0.002]
[1761449786673,10.34081839,3933.3,3933.2,0.002]
[1761449790867,11.71331125,3933.3,3933.2,0.002]
[1761449791778,10.34081839,3933.3,3933.2,0.002]
[1761449796880,10.43981839,3933.3,3933.2,0.002]
[1761449797190,10.34081839,3933.3,3933.2,0.002]
[1761449800485,4.60453906,3933.2,3933.1,0.002]
[1761449800684,6.18661468,3933.2,3933.1,0.002]
[1761449800990,6.15483395,3933.2,3933.1,0.002]
[1761449801296,6.15483395,3933.2,3931.7,0.10178104]
[1761449801297,4.60499163,3932.5,3932.1,0.022]
[1761449801490,9.11739663,3932.5,3932.1,0.022]
[1761449801688,9.18531024,3932.5,3932.1,0.022]
[1761449801991,9.2871107,3932.5,3932.1,0.022]
[1761449802191,10.65863914,3932.5,3932.1,0.022]
[1761449802966,10.55893914,3932.5,3932.1,0.022]
[1761449804077,9.1874107,3932.5,3932.1,0.022]
[1761449805398,4.74867228,3932.5,3932.2,0.2273]
[1761449805704,4.74867228,3932.5,3932.4,0.4601]
[1761449806004,5.43363904,3932.5,3932.4,0.4601]
[1761449806300,5.94051904,3932.5,3932.4,0.4601]
[1761449807567,3.70035228,3932.5,3932.4,0.4601]
[1761449807996,5.25555228,3932.5,3932.4,0.4601]
[1761449809277,5.25555228,3932.5,3932.4,0.002]
[1761449809278,8.44655228,3932.5,3932.4,0.002]
[1761449809604,8.44655228,3932.5,3932.4,0.4601]
[1761449811221,8.57375228,3932.5,3932.4,0.4601]
[1761449815006,5.38275228,3932.5,3932.4,0.4601]
[1761449819830,5.28095182,3932.5,3932.4,0.4601]
[1761449820917,5.28095182,3932.5,3932.4,0.002]
[1761449821527,5.28095182,3932.5,3932.4,0.4745]
[1761449821744,5.28095182,3932.5,3932.4,0.002]
[1761449822433,5.28195182,3932.5,3932.4,0.002]
[1761449823719,5.28195182,3932.5,3932.4,0.4745]
[1761449828513,0.001,3932.5,3932.4,0.4745]
[1761449833269,2.54391163,3932.5,3932.4,0.4745]
[1761449835676,3.05079163,3932.5,3932.4,0.4745]
[1761449836013,3.59893875,3932.5,3932.4,0.002]
[1761449836247,3.59893875,3932.5,3932.4,0.4319]
[1761449847077,3.59893875,3932.5,3932.4,0.002]
[1761449852291,3.59893875,3932.5,3932.4,0.4319]
[1761449854720,3.59893875,3932.5,3932.4,0.002]
[1761449856125,3.59893875,3932.5,3932.4,0.4319]
[1761449868138,0.54914712,3932.5,3932.4,0.4319]
[1761449869140,0.001,3932.5,3932.4,0.4319]
[1761449869362,0.001,3932.5,3932.4,0.75433682]
[1761449869810,0.001,3932.5,3932.4,0.4319]
[1761449888437,0.001,3932.5,3932.4,0.002]
[1761449888972,0.001,3932.5,3932.4,0.4567]
[1761449892180,0.001,3932.5,3932.4,0.002]
[1761449892341,0.1282,3932.5,3932.4,0.002]
[1761449892544,2.67111163,3932.5,3932.4,3.084]
[1761449894276,2.67111163,3932.5,3932.4,3.192]
[1761449898485,3.17799163,3932.5,3932.4,0.002]
[1761449898783,1.76589684,3932.5,3932.4,0.002]
[1761449899097,1.18384919,3932.5,3932.4,0.4567]
[1761449899398,3.72676082,3932.5,3932.4,0.002]
[1761449899953,1.18384919,3932.5,3932.4,0.002]
[1761449900650,3.72676082,3932.5,3932.4,0.002]
[1761449901453,1.18384919,3932.5,3932.4,0.002]
[1761449902694,0.63508,3932.5,3932.4,0.002]
[1761449902897,1.18371618,3932.5,3932.4,0.002]
[1761449903209,0.63508,3932.5,3932.4,0.002]
[1761449903707,3.17799163,3932.5,3932.4,0.002]
[1761449903902,3.72660397,3932.5,3932.4,0.002]
[1761449904475,3.17799163,3932.5,3932.4,0.002]
[1761449904876,3.72658582,3932.5,3932.4,0.002]
[1761449905617,1.18367419,3932.5,3932.4,0.002]
[1761449905786,3.17799163,3932.5,3932.4,0.002]
[1761449906723,0.63508,3932.5,3932.4,0.002]
[1761449906903,3.72655249,3932.5,3932.4,0.002]
[1761449907108,1.18364086,3932.5,3932.4,0.002]
[1761449907418,0.63508,3932.5,3932.4,0.002]
[1761449908005,3.17799163,3932.5,3932.4,0.002]
[1761449908202,3.72654239,3932.5,3932.4,0.002]
[1761449908582,3.17799163,3932.5,3932.4,0.002]
[1761449912116,0.63508,3932.5,3932.4,0.002]
[1761449914228,1.18370448,3932.5,3932.4,0.002]
[1761449914734,3.72661611,3932.5,3932.4,0.002]
[1761449915329,1.18370448,3932.5,3932.4,0.002]
[1761449916652,3.17799163,3932.5,3932.4,0.002]
[1761449916837,3.72661611,3932.5,3932.4,0.002]
[1761449919211,1.18370448,3932.5,3932.4,0.002]
[1761449919412,3.72661611,3932.5,3932.4,0.002]
[1761449922001,1.18370448,3932.5,3932.4,0.002]
[1761449922637,3.72661611,3932.5,3932.4,0.002]
[1761449924516,1.18370448,3932.5,3932.4,0.002]
[1761449924718,3.72661611,3932.5,3932.4,0.002]
[1761449925026,1.18370448,3932.5,3932.4,0.002]
[1761449925835,3.72661611,3932.5,3932.4,0.002]
[1761449934764,6.03178387,3932.5,3932.4,0.002]
[1761449935126,6.13357449,3932.5,3932.4,0.002]
[1761449935331,7.04812429,3932.5,3932.4,0.002]
[1761449935532,6.13357449,3932.5,3932.4,0.002]
[1761449936168,7.50434825,3932.5,3932.4,0.002]
[1761449938172,6.13357449,3932.5,3932.4,0.002]
[1761449943002,3.04998564,3932.2,3932.1,1e-08]
[1761449943201,12.79778558,3932.2,3932.1,1e-08]
[1761449943405,12.86569676,3932.2,3932.1,1e-08]
[1761449943579,13.77780932,3932.2,3932.1,1e-08]
[1761449943794,14.33828264,3932.2,3932.1,1e-08]
[1761449943995,15.43008104,3932.2,3932.1,1e-08]
[1761449944317,14.05930728,3932.2,3932.1,1e-08]
[1761449946724,14.19207594,3932.2,3932.1,1e-08]
[1761449948106,3.05030905,3931.7,3931.6,1e-08]
[1761449948307,14.16876328,3931.7,3931.6,1e-08]
[1761449948625,14.23597042,3931.7,3931.6,1e-08]
[1761449948817,14.33779239,3931.7,3931.6,1e-08]
[1761449949321,14.33750281,3931.7,3931.6,1e-08]
[1761449949708,13.65470735,3931.7,3931.6,1e-08]
[1761449951495,13.65470735,3931.7,3930.1,0.4508]
[1761449951496,4.60576783,3931.3,3931.2,1e-08]
[1761449951709,12.92657245,3931.3,3931.2,1e-08]
[1761449951909,12.99377895,3931.3,3931.2,1e-08]
[1761449952112,13.0956087,3931.3,3931.2,1e-08]
[1761449953035,13.77814147,3931.3,3931.2,1e-08]
[1761449953225,14.99967322,3931.3,3931.2,1e-08]
[1761449953399,14.31714045,3931.3,3931.2,1e-08]
[1761449954825,13.51972544,3931.3,3931.2,1e-08]
[1761449955426,17.14549707,3931.3,3930.1,0.02]
[1761449955739,4.73367977,3930.2,3929.8,0.002]
[1761449955926,6.80444564,3929.9,3929.8,0.002]
[1761449956125,7.35307012,3929.9,3929.8,0.002]
[1761449956549,7.78387012,3929.9,3929.8,0.002]
[1761449956750,9.72227317,3929.9,3929.8,0.002]
[1761449957147,11.27747317,3929.9,3929.8,0.002]
[1761449958332,14.9032448,3929.9,3929.8,0.002]
[1761449960178,15.58577757,3929.9,3929.8,0.002]
[1761449960337,14.9032448,3929.9,3929.8,0.002]
[1761449962186,15.58577757,3929.9,3929.8,0.002]
[1761449962386,14.9032448,3929.9,3929.8,0.002]
[1761449963259,15.58577757,3929.9,3929.8,0.002]
[1761449965380,14.9032448,3929.9,3929.8,0.002]
[1761449967490,11.95886733,3929.9,3929.8,0.002]
[1761449967692,11.74756733,3929.9,3929.8,0.002]
[1761449969190,11.06617317,3929.9,3929.8,0.002]
[1761449970354,7.44040154,3929.9,3929.8,0.002]
[1761449970655,11.74735884,3929.9,3929.8,0.4328]
[1761449971151,4.60712733,3929.2,3929.1,0.2341]
[1761449971376,7.92632733,3929.2,3929.1,0.2341]
[1761449971851,8.16352733,3929.2,3929.1,0.2341]
[1761449973095,8.16352733,3929.2,3929.1,0.6649]
[1761449974494,8.70892763,3929.2,3929.1,0.6649]